bitfinex-derivatives/quotes_ETHF0:USTF0_20250926
["timestamp","ask_amount","ask_price","bid_price","bid_amount"]
[1758909758750,0.259,4051.8,4051.7,0.00282775]
[1758909758948,3.2078,4052.1,4051.7,0.00282775]
[1758909759251,3.2078,4052.6,4052.5,0.44385]
[1758909760258,3.2078,4052.6,4052.4,0.44387]
[1758909760463,3.2078,4052.6,4052.0,3.2078]
[1758909760759,3.2078,4052.6,4052.5,0.44385]
[1758909760956,3.65164,4052.6,4052.0,3.2078]
[1758909761259,3.4668,4052.6,4052.5,0.44385]
[1758909761659,3.2078,4053.1,4052.9,0.44381]
[1758909762554,3.2078,4053.1,4052.4,0.259]
[1758909762759,0.44381,4052.9,4052.2,0.259]
[1758909763056,0.44383,4052.7,4052.2,0.259]
[1758909763256,3.2078,4052.6,4052.1,0.259]
[1758909763449,3.2078,4052.6,4051.7,0.00282775]
[1758909763655,4.57644,4052.6,4051.7,0.00282775]
[1758909763857,0.44392,4051.9,4051.7,0.00282775]
[1758909764262,3.4668,4052.1,4051.7,0.44676775]
[1758909764461,0.44392,4051.9,4051.7,0.00282775]
[1758909764665,3.91071,4052.1,4051.7,0.00282775]
[1758909764860,0.44391,4052.0,4051.7,0.44676775]
[1758909765057,3.9107,4052.1,4051.7,0.44675775]
[1758909765258,3.4668,4052.1,4051.7,0.00282775]
[1758909765456,3.4668,4052.1,4051.8,0.44393]
[1758909765760,3.9107,4052.1,4051.8,0.44393]
[1758909765962,3.2078,4052.1,4051.9,0.44391]
[1758909766157,0.259,4052.0,4051.7,0.00282775]
[1758909766564,0.259,4051.9,4051.8,0.44393]
[1758909766964,0.259,4051.9,4051.7,0.44676775]
[1758909767364,0.259,4051.9,4051.7,0.00282775]
[1758909767666,0.259,4051.9,4051.7,0.44676775]
[1758909767863,3.2078,4052.1,4051.7,0.00282775]
[1758909768166,0.70291,4052.0,4051.7,0.00282775]
[1758909768361,0.259,4052.0,4051.8,0.44393]
[1758909768565,3.2078,4052.1,4051.9,0.44392]
[1758909768764,0.259,4052.0,4051.9,0.44392]
[1758909769165,0.44392,4051.9,4051.7,0.00282775]
[1758909769367,3.4668,4052.1,4051.7,0.00282775]
[1758909769566,3.4668,4052.1,4051.9,0.44392]
[1758909770068,3.9107,4052.1,4051.7,0.00282775]
[1758909770262,0.44391,4052.0,4051.8,0.44393]
[1758909770463,0.70292,4051.9,4051.8,0.44393]
[1758909770667,0.259,4051.9,4051.8,0.44393]
[1758909770865,3.2078,4052.1,4051.8,0.44393]
[1758909771064,0.259,4052.0,4051.8,0.44393]
[1758909771271,0.259,4052.0,4051.9,0.44392]
[1758909771463,3.6517,4052.1,4051.9,0.44392]
[1758909771769,3.2078,4052.1,4052.0,0.44391]
[1758909771969,0.44386,4052.5,4051.8,1.10982]
[1758909772370,3.4658,4052.6,4051.7,0.00282775]
[1758909772371,0.259,4052.4,4051.7,0.00282775]
[1758909772567,3.2078,4052.6,4052.1,0.44389]
[1758909772867,3.2078,4052.6,4052.5,0.44385]
[1758909773770,0.00305248,4053.2,4052.3,1.10967]
[1758909773771,3.2078,4053.1,4052.3,1.10967]
[1758909774074,3.2078,4053.1,4053.0,0.4438]
[1758909774275,3.2078,4053.1,4052.9,0.4438]
[1758909774570,0.44381,4052.9,4052.6,0.44384]
[1758909774762,0.44381,4052.9,4052.3,0.259]
[1758909774763,3.2078,4053.1,4053.0,0.4438]
[1758909774973,0.00305248,4053.2,4053.0,0.4438]
[1758909775274,0.00305248,4053.2,4053.0,5.4438]
[1758909776966,0.00305248,4053.2,4053.0,0.4438]
[1758909777174,0.00305248,4053.2,4053.1,0.259]
[1758909777368,0.00305248,4053.2,4053.0,0.4438]
[1758909777578,0.00305248,4053.2,4053.1,0.259]
[1758909777966,0.00305248,4053.2,4053.0,0.7028]
[1758909778262,0.4438,4053.0,4052.2,4.53660073]
[1758909778470,3.2078,4053.1,4052.8,0.44382]
[1758909778773,3.2078,4053.1,4052.9,0.44381]
[1758909778972,3.65159,4053.1,4052.8,0.44382]
[1758909779269,3.2078,4053.1,4052.9,0.4438]
[1758909779468,3.65159,4053.1,4052.9,0.4438]
[1758909780371,3.65159,4053.1,4052.3,1.10967]
[1758909780372,3.2078,4053.1,4052.2,3.2078]
[1758909780669,0.44386,4052.5,4052.3,0.44387]
[1758909781174,3.2078,4052.6,4052.4,0.44386]
[1758909781370,0.49906848,4052.5,4051.9,0.44392]
[1758909781675,0.44393,4051.9,4051.7,0.00282775]
[1758909781972,0.258,4051.8,4051.7,0.00282775]
[1758909782170,0.7571841,4051.8,4051.7,0.00282775]
[1758909783066,3.4668,4052.1,4051.8,0.44393]
[1758909783262,3.2078,4052.1,4051.9,0.44392]
[1758909783470,3.2078,4052.6,4052.4,0.44386]
[1758909783668,0.49898659,4052.5,4052.4,0.44386]
[1758909783866,3.2078,4052.6,4052.4,0.44386]
[1758909786884,3.4668,4053.1,4052.9,0.4438]
[1758909787078,3.2078,4053.1,4052.9,0.4438]
[1758909787283,0.00305248,4053.2,4052.9,0.4438]
[1758909787789,3.2078,4053.1,4052.8,0.44382]
[1758909788283,3.2078,4053.1,4052.9,0.44381]
[1758909788681,3.2078,4053.1,4052.3,1.0339]
[1758909788883,0.44383,4052.8,4052.3,1.0339]
[1758909789083,0.259,4052.7,4052.5,0.44385]
[1758909789489,0.44385,4052.6,4052.3,1.47778]
[1758909789791,0.44386,4052.5,4052.3,1.0339]
[1758909789986,0.75812312,4052.4,4052.3,1.0339]
[1758909790287,0.44393,4051.8,4051.3,0.44398]
[1758909790478,4.40991318,4051.8,4051.1,0.444]
[1758909790680,4.40991318,4051.8,4051.2,0.444]
[1758909791087,4.40991318,4051.8,4051.4,1.37527]
[1758909791288,3.96598318,4051.8,4051.5,0.44396]
[1758909791582,3.96598318,4051.8,4051.4,0.9313]
[1758909791789,3.96598318,4051.8,4051.6,0.44395]
[1758909792081,3.96598318,4051.8,4051.4,0.9313]
[1758909792285,3.96598318,4051.8,4051.4,1.9623]
[1758909793286,8.96598318,4051.8,4051.4,1.9623]
[1758909794080,3.70698318,4051.8,4051.4,1.9623]
[1758909794281,3.4658,4051.8,4051.7,0.44676775]
[1758909794480,3.4658,4051.8,4051.7,0.00282775]
[1758909794680,3.97090131,4051.8,4051.7,0.00282775]
[1758909794882,3.4658,4051.8,4051.7,0.00282775]
[1758909795082,3.97087699,4051.8,4051.7,0.00282775]
[1758909795585,3.2078,4051.8,4051.7,0.00282775]
[1758909795988,0.258,4052.0,4051.8,0.44393]
[1758909796383,5.01344632,4052.9,4052.1,1.10975]
[1758909796384,3.65161,4052.9,4052.1,1.10975]
[1758909796594,0.50484422,4052.7,4051.9,3.2078]
[1758909796779,0.2826,4052.8,4052.3,0.44387]
[1758909796981,3.17404725,4052.4,4052.1,0.44389]
[1758909797182,0.44389,4052.2,4052.0,0.44391]
[1758909797391,0.259,4052.3,4052.0,0.44391]
[1758909797588,0.70288,4052.3,4052.0,0.44391]
[1758909797791,0.50496375,4052.2,4051.7,0.00282775]
[1758909797993,3.65173,4051.9,4051.7,0.00282775]
[1758909798290,0.76398789,4051.8,4051.7,0.00282775]
[1758909799482,1.20791789,4051.8,4051.7,0.00282775]
[1758909802585,11.22136421,4051.8,4051.7,0.00282775]
[1758909802892,11.22136421,4051.8,4049.6,5.01344632]
[1758909802893,10.77743421,4051.8,4049.8,3.2078]
[1758909803083,4.31801,4050.5,4049.6,0.44416]
[1758909803290,0.76266868,4050.4,4049.3,3.2078]
[1758909803493,0.44413,4050.1,4049.7,0.44416]
[1758909803691,0.70213,4050.0,4049.7,0.44732044]
[1758909803891,0.258,4050.0,4049.8,0.44415]
[1758909804593,0.00186805,4050.1,4050.0,0.44413]
[1758909804996,0.00186805,4050.1,4050.0,5.44413]
[1758909808097,0.00186805,4050.1,4050.0,0.44413]
[1758909815093,0.00186805,4050.1,4050.0,5.44413]
[1758909816503,0.00186805,4050.1,4050.0,5.70213]
[1758909816801,3.2078,4051.5,4051.4,0.44398]
[1758909817801,3.65397008,4051.5,4050.8,0.258]
[1758909818093,3.21001008,4051.5,4051.4,0.44398]
[1758909820204,0.00221008,4051.5,4051.4,0.44398]
[1758909820500,0.0246,4052.2,4052.1,0.4439]
[1758909820701,0.0246,4052.2,4052.1,3.6517]
[1758909821497,0.02730527,4052.2,4052.1,3.6517]
[1758909822003,0.00270527,4052.2,4052.1,3.6517]
[1758909825106,0.44659527,4052.2,4052.0,0.8345]
[1758909825299,0.00270527,4052.2,4052.0,0.8345]
[1758909825496,0.00270527,4052.2,4052.0,1.27841]
[1758909826300,0.00270527,4052.2,4052.1,0.4439]
[1758909826505,0.00270527,4052.2,4052.1,3.6517]
[1758909827695,5.27e-06,4052.2,4052.1,8.6517]
[1758909828201,5.27e-06,4052.2,4052.1,10.63209906]
[1758909828904,5.27e-06,4052.9,4052.8,0.44382]
[1758909829104,5.27e-06,4052.9,4052.8,3.90962]
[1758909829296,3.2078,4054.1,4054.0,0.44369]
[1758909829497,3.2078,4054.1,4053.8,0.44371]
[1758909829800,3.21096195,4054.1,4053.9,0.4437]
[1758909830199,3.21096195,4054.1,4053.8,0.00275836]
[1758909831202,5.45714632,4054.0,4053.8,0.00275836]
[1758909831406,5.45713632,4054.0,4053.8,0.00275836]
[1758909833508,0.257,4053.9,4053.8,0.00275836]
[1758909833808,6.87659939,4053.9,4052.7,0.44383]
[1758909834004,3.2078,4053.2,4052.7,0.44383]
[1758909834306,3.2078,4053.2,4053.0,0.44379]
[1758909834809,3.2078,4053.2,4053.0,0.00261043]
[1758909836500,3.4648,4053.2,4053.0,0.00261043]
[1758909836702,5.01344632,4053.1,4053.0,0.00261043]
[1758909836905,10.01344632,4053.1,4053.0,0.00261043]
[1758909837100,10.45723632,4053.1,4053.0,0.00261043]
[1758909837698,10.96794734,4053.1,4053.0,0.00261043]
[1758909838107,11.22494734,4053.1,4053.0,0.00261043]
[1758909838301,10.78115734,4053.1,4053.0,0.00261043]
[1758909838610,0.257,4053.1,4053.0,0.00261043]
[1758909838810,0.257,4053.1,4053.0,0.44641043]
[1758909839205,3.2078,4053.2,4053.1,0.44379]
[1758909839509,3.4648,4053.2,4053.1,0.44379]
[1758909840205,3.2078,4053.2,4053.1,0.44379]
[1758909840399,3.4648,4053.2,4053.1,0.44379]
[1758909840801,3.2078,4053.2,4053.1,0.44379]
[1758909844102,3.4648,4053.2,4053.1,0.44379]
[1758909845313,3.97737527,4053.2,4053.1,0.44379]
[1758909845710,3.4648,4053.2,4053.1,0.44379]
[1758909846206,3.72066852,4053.2,4053.1,0.44379]
[1758909846511,3.97766852,4053.2,4053.1,0.44379]
[1758909852406,3.72066852,4053.2,4053.1,0.44379]
[1758909852614,3.97766852,4053.2,4053.1,0.44379]
[1758909852809,3.72066852,4053.2,4053.1,0.44379]
[1758909853413,0.51286852,4053.2,4053.1,0.44379]
[1758909854114,0.00609852,4053.2,4053.1,5.44379]
[1758909854305,3.2078,4053.7,4053.2,1.10943]
[1758909854508,3.2078,4053.7,4053.6,0.44373]
[1758909854809,0.257,4053.8,4053.7,0.44372]
[1758909856816,0.44372,4053.7,4053.6,0.44373]
[1758909857015,3.2078,4053.7,4053.6,0.44373]
[1758909861118,0.00316195,4054.1,4054.0,0.44369]
[1758909861518,0.26016195,4054.1,4054.0,0.44369]
[1758909864219,0.00316195,4054.1,4054.0,8.65149]
[1758909864815,0.00316195,4054.1,4054.0,0.44369]
[1758909866016,0.00316195,4054.1,4053.9,0.4437]
[1758909867019,0.00316195,4054.1,4053.8,0.44371]
[1758909867214,0.50704088,4054.0,4053.8,0.44371]
[1758909867416,0.50704088,4053.9,4053.8,0.44371]
[1758909868211,0.00316195,4054.1,4054.0,0.44369]
[1758909868411,0.44369,4054.0,4053.7,0.44372]
[1758909868622,0.76408353,4053.9,4053.7,0.44372]
[1758909868819,0.50708353,4053.8,4053.7,0.44372]
[1758909870223,0.50719267,4053.8,4053.7,0.44372]
[1758909870425,0.50721533,4053.8,4053.7,0.44372]
[1758909871714,0.50721533,4053.8,4053.6,1.0088]
[1758909871916,3.97201533,4053.7,4053.6,1.45253]
[1758909872221,4.41573533,4053.7,4053.6,1.0088]
[1758909872420,4.41573533,4053.7,4053.6,1.45253]
[1758909872815,4.41573533,4053.7,4053.6,1.0088]
[1758909875828,9.41573533,4053.7,4053.6,1.0088]
[1758909878220,15.20800733,4053.7,4053.6,1.0088]
[1758909878424,0.44379,4053.1,4053.0,0.00261043]
[1758909878720,4.41580533,4053.1,4053.0,0.00261043]
[1758909880521,4.15880533,4053.1,4053.0,0.00261043]
[1758909880919,4.41580533,4053.1,4053.0,0.00261043]
[1758909881215,4.41573599,4053.1,4053.0,0.00261043]
[1758909881925,4.15873599,4053.1,4053.0,0.00261043]
[1758909882220,4.41573599,4053.1,4053.0,0.00261043]
[1758909882812,9.41573599,4053.1,4053.0,0.00261043]
[1758909883223,0.44394,4051.8,4050.8,1.1101]
[1758909883418,0.76414599,4051.7,4051.5,0.25186]
[1758909883626,3.2078,4052.4,4051.5,1.10992]
[1758909883818,0.50675841,4052.3,4051.6,1.10989]
[1758909884019,0.4439,4052.1,4051.9,0.44391]
[1758909884222,0.76375841,4052.0,4051.9,0.44632268]
[1758909884916,0.50675841,4052.0,4051.9,0.44632268]
[1758909885122,3.2078,4052.4,4052.2,0.44389]
[1758909885717,3.4648,4052.4,4051.9,0.00241268]
[1758909885927,3.4648,4052.4,4052.2,0.44389]
[1758909886132,3.4648,4052.4,4051.9,0.00241268]
[1758909886426,0.4439,4052.1,4051.9,0.00241268]
[1758909886623,0.76230025,4052.0,4051.9,0.00241268]
[1758909886822,0.50530025,4052.0,4051.9,0.44633268]
[1758909887213,0.44391,4052.1,4051.9,0.44633268]
[1758909887426,0.257,4052.2,4052.0,0.4439]
[1758909887626,0.50514066,4052.1,4052.0,0.4439]
[1758909888222,0.257,4052.2,4052.0,0.4439]
[1758909889128,0.44388,4052.3,4052.1,0.44389]
[1758909889329,0.76201568,4052.2,4052.1,0.44389]
[1758909889529,0.4439,4052.1,4051.9,0.44632268]
[1758909889729,0.44388,4052.3,4052.0,0.4439]
[1758909889930,0.76193786,4052.2,4052.0,0.4439]
[1758909890131,0.257,4052.2,4052.0,0.4439]
[1758909890327,0.257,4052.2,4052.1,0.4439]
[1758909890526,0.76183039,4052.2,4052.1,0.4439]
[1758909890730,0.50483039,4052.2,4051.9,0.00241268]
[1758909890939,0.7009,4052.1,4052.0,0.44391]
[1758909891327,0.44391,4052.0,4051.9,0.00241268]
[1758909891637,0.94869093,4052.0,4051.9,0.00241268]
[1758909892031,1.20569093,4052.0,4051.9,0.00241268]
[1758909892524,0.94869093,4052.0,4051.9,0.00241268]
[1758909892926,3.2078,4052.4,4052.1,0.4439]
[1758909893128,0.76166821,4052.3,4052.2,0.44389]
[1758909893936,3.2078,4052.9,4052.2,5.0]
[1758909894235,3.2078,4052.9,4052.7,0.44383]
[1758909894236,0.257,4052.8,4052.7,0.44383]
[1758909894736,3.2078,4052.9,4052.8,0.44382]
[1758909895532,3.2078,4053.4,4053.2,0.44377]
[1758909896132,3.2078,4053.4,4052.9,1.10952]
[1758909896133,0.257,4053.6,4053.4,0.44375]
[1758909896334,3.2078,4053.9,4053.8,0.44371]
[1758909897239,3.71279284,4053.9,4053.8,0.44371]
[1758909897534,3.2078,4053.9,4053.8,0.44371]
[1758909898540,3.4648,4053.9,4053.8,0.44371]
[1758909898733,3.4648,4053.9,4052.9,3.2078]
[1758909898933,3.2078,4053.3,4052.4,0.257]
[1758909899132,3.4648,4053.3,4052.9,0.4438]
[1758909899331,0.505247,4053.2,4052.9,0.4438]
[1758909899534,3.4648,4053.3,4052.5,1.10964]
[1758909899735,3.4648,4053.3,4052.9,0.4438]
[1758909899736,0.50524905,4053.2,4052.9,0.4438]
[1758909899932,3.4648,4053.3,4053.1,0.44379]
[1758909900136,0.50524906,4053.2,4053.1,0.44379]
[1758909900940,0.00316195,4054.1,4053.2,1.10944]
[1758909901141,0.5052097,4054.0,4053.9,0.4437]
[1758909901536,0.5052097,4054.0,4053.3,3.2078]
[1758909901851,0.5052097,4053.9,4053.7,0.44372]
[1758909902041,0.7622097,4053.8,4053.7,0.44372]
[1758909902345,0.00316195,4054.1,4054.0,0.44369]
[1758909902548,0.50830792,4054.1,4054.0,0.44369]
[1758909903448,0.00316195,4054.1,4054.0,0.44369]
[1758909903744,0.50818004,4054.1,4054.0,0.44369]
[1758909903948,0.50819213,4054.1,4054.0,0.44369]
[1758909904251,0.00316195,4054.1,4054.0,0.44369]
[1758909906349,0.26016195,4054.1,4054.0,0.44369]
[1758909912347,1.95e-06,4054.1,4054.0,5.44369]
[1758909913155,3.2948,4055.3,4054.4,2.21824]
[1758909913452,3.2078,4055.3,4055.2,0.44356]
[1758909913755,3.2078,4055.8,4055.7,0.4435]
[1758909913949,3.4648,4055.8,4055.7,0.4435]
[1758909914149,3.46657316,4055.8,4055.7,0.4455931]
[1758909915068,3.20957316,4055.8,4055.7,5.4455931]
[1758909915267,0.00177316,4055.8,4055.7,5.4455931]
[1758909916958,3.2078,4056.3,4055.7,5.4455931]
[1758909916959,3.2078,4056.3,4056.2,0.44345]
[1758909917354,0.257,4056.7,4055.7,0.0020931]
[1758909917553,3.2078,4056.8,4056.7,0.44339]
[1758909917967,0.00200615,4056.8,4056.7,0.44339]
[1758909918166,0.00200615,4056.8,4056.7,5.44339]
[1758909918755,0.00200615,4056.8,4056.7,10.4451894]
[1758909919061,0.41662635,4057.7,4057.6,0.44329]
[1758909919264,0.41662635,4057.7,4057.5,3.2078]
[1758909919456,0.41662635,4057.7,4057.5,0.4433]
[1758909919863,0.41933522,4057.7,4057.5,0.4433]
[1758909920055,0.41933522,4057.7,4057.3,0.44332]
[1758909920663,0.41933522,4057.7,4057.4,0.44331]
[1758909921167,0.41933522,4057.7,4057.3,0.44332]
[1758909921363,0.41933522,4057.7,4056.9,2.90811]
[1758909921570,3.2078,4057.4,4057.0,0.44336]
[1758909921769,0.44333,4057.3,4056.8,0.44338]
[1758909921971,3.2078,4057.4,4056.8,0.44338]
[1758909922165,3.4648,4057.4,4057.2,0.44334]
[1758909922663,3.4648,4057.4,4057.1,0.44334]
[1758909923068,3.4648,4057.4,4057.3,0.44333]
[1758909923069,3.2078,4057.4,4057.3,0.44333]
[1758909923268,0.41933522,4057.7,4057.6,0.44329]
[1758909923465,0.67633522,4057.7,4057.6,0.44329]
[1758909923870,0.41933522,4057.7,4057.6,0.44329]
[1758909924064,3.2078,4058.9,4057.7,2.21643]
[1758909924273,38.459,4060.0,4057.7,2.21643]
[1758909924274,0.257,4060.2,4058.8,3.2078]
[1758909924472,5.0017994,4059.8,4059.3,3.2078]
[1758909924766,0.75809556,4059.7,4058.8,3.2078]
[1758909924976,5.0017994,4059.3,4058.3,3.2078]
[1758909925168,3.70890304,4059.2,4058.3,3.20993263]
[1758909925360,0.75810304,4059.1,4058.3,3.20993263]
[1758909925566,0.75910304,4059.0,4058.3,3.20993263]
[1758909925766,3.70890304,4058.9,4058.3,3.20993263]
[1758909925976,0.4432,4058.5,4058.3,3.20993263]
[1758909926274,0.259,4058.4,4058.3,0.00213263]
[1758909926473,0.4432,4058.5,4058.3,0.00213263]
[1758909926770,0.259,4058.4,4058.3,0.00213263]
[1758909927267,0.259,4058.4,4057.1,1.36736]
[1758909927268,13.2095994,4058.4,4057.1,0.259]
[1758909927473,13.2095994,4058.4,4056.7,3.2078]
[1758909927474,0.44338,4056.9,4056.7,3.2078]
[1758909927663,0.44343,4056.4,4056.2,3.2078]
[1758909927963,0.259,4056.3,4055.6,3.6513]
[1758909928171,0.259,4056.3,4055.7,0.44349]
[1758909928370,0.44349,4055.9,4055.7,0.00275963]
[1758909928667,0.259,4055.8,4055.7,0.00275963]
[1758909928969,5.76045997,4055.8,4055.7,0.00275963]
[1758909929359,0.50145997,4055.8,4055.7,0.00275963]
[1758909929563,0.00247854,4056.3,4055.7,0.00275963]
[1758909929766,0.26,4056.2,4055.8,0.44349]
[1758909930172,0.26,4056.2,4055.7,0.00275963]
[1758909930768,0.44592854,4056.3,4055.7,0.00275963]
[1758909930968,0.259,4056.2,4055.7,0.00275963]
[1758909931162,0.44348,4055.9,4055.7,0.00275963]
[1758909931472,0.259,4055.8,4055.7,0.00275963]
[1758909931771,0.76091466,4055.8,4055.7,0.00275963]
[1758909932475,0.44362,4054.6,4054.5,3.2078]
[1758909932680,3.2078,4055.0,4054.5,3.2078]
[1758909932867,0.76120995,4054.9,4054.5,3.2078]
[1758909933065,0.50220995,4054.8,4054.5,3.2078]
[1758909933260,0.44362,4054.7,4054.5,3.21015972]
[1758909933668,0.44361,4054.8,4054.5,3.21015972]
[1758909933866,0.44361,4054.7,4054.5,3.21015972]
[1758909934067,0.44361,4054.7,4054.5,0.00235972]
[1758909934278,0.44368,4054.1,4053.9,3.2078]
[1758909934479,0.259,4054.0,4053.9,3.2078]
[1758909935167,0.259,4054.0,4053.9,3.2095278]
[1758909935368,0.259,4054.0,4053.4,3.2078]
[1758909935369,0.44374,4053.5,4053.4,3.2078]
[1758909935672,0.44379,4053.1,4052.9,0.02467399]
[1758909935877,0.259,4053.0,4052.9,0.02467399]
[1758909936177,0.44377,4053.3,4052.9,0.02467399]
[1758909936375,0.00188663,4053.3,4052.9,0.02640438]
[1758909936678,0.70278,4053.2,4052.9,0.02640438]
[1758909936876,0.44379,4053.1,4052.9,0.02640438]
[1758909937576,0.259,4053.0,4052.9,0.02640438]
[1758909937764,1.10954,4052.9,4052.2,3.2078]
[1758909937965,0.44393,4051.8,4051.7,3.2078]
[1758909938176,5.4457294,4051.8,4051.7,3.2078]
[1758909938379,5.7057294,4051.8,4051.7,3.2078]
[1758909938673,3.2078,4052.5,4051.7,3.2078]
[1758909938883,1.10947,4053.2,4052.2,3.2078]
[1758909938884,0.94551528,4052.4,4052.2,3.2078]
[1758909939172,0.70387,4052.4,4052.2,3.2078]
[1758909939377,0.26,4052.3,4052.2,3.2078]
[1758909939776,0.26,4052.3,4051.7,3.21019063]
[1758909939976,6.1113294,4052.9,4051.7,3.65412063]
[1758909939977,0.44391,4052.0,4051.7,3.65412063]
[1758909940176,6.1113294,4052.9,4051.7,3.65412063]
[1758909940177,0.44392,4051.9,4051.7,3.21019063]
[1758909940476,0.44398,4051.4,4051.2,3.2078]
[1758909940673,0.44404,4050.8,4050.7,3.2078]
[1758909940872,0.70504,4050.8,4050.7,3.2078]
[1758909941275,0.70504,4050.8,4050.7,3.21038164]
[1758909942781,0.70504,4050.8,4050.7,0.00258164]
[1758909943774,0.70504,4050.8,4047.3,2.2221]
[1758909943775,0.44422,4049.2,4048.7,3.65206]
[1758909943977,0.261,4049.1,4048.8,0.44425]
[1758909944179,0.44421,4049.3,4048.8,0.44425]
[1758909944180,0.101,4049.0,4048.8,0.44425]
[1758909944376,0.44422,4049.2,4048.8,0.44425]
[1758909944572,0.44416,4049.7,4048.7,3.2078]
[1758909944779,0.44673279,4049.7,4048.7,3.21055364]
[1758909945078,0.261,4049.6,4048.7,3.65481364]
[1758909945274,0.261,4049.6,4048.7,3.21055364]
[1758909945573,5.4460494,4048.9,4048.7,0.00275364]
[1758909945773,0.261,4048.8,4048.7,0.00275364]
[1758909946777,0.44427,4048.7,4047.9,0.02470447]
[1758909946972,0.44434,4048.0,4047.9,0.02470447]
[1758909947178,0.70534,4048.0,4047.9,0.02470447]
[1758909947679,1.1107,4048.6,4048.1,0.44433]
[1758909947680,0.44428,4048.6,4048.1,0.44433]
[1758909947885,3.65206,4048.8,4048.2,3.2078]
[1758909948088,0.70527,4048.7,4048.2,3.2078]
[1758909948385,0.44429,4048.5,4048.2,3.2078]
[1758909948586,0.261,4048.4,4048.2,3.2078]
[1758909948882,0.44432,4048.2,4048.1,0.00260208]
[1758909950385,0.261,4048.2,4048.1,0.00260208]
[1758909950787,0.44431,4048.3,4048.1,0.00260208]
[1758909950981,0.261,4048.2,4048.1,0.00260208]
[1758909952780,0.262,4048.2,4048.1,0.00260208]
[1758909952980,0.44432,4048.3,4048.1,0.00260208]
[1758909953181,3.2078,4048.4,4048.1,0.00260208]
[1758909953182,5.0017994,4049.1,4048.2,3.2078]
[1758909953379,0.44429,4048.5,4048.4,3.2078]
[1758909953586,0.44427,4048.7,4048.4,3.2078]
[1758909953887,0.70629,4048.6,4048.4,3.2078]
[1758909954282,0.70629,4048.6,4048.1,0.00260208]
[1758909954283,0.44431,4048.3,4048.1,0.44693208]
[1758909954476,0.262,4048.2,4048.1,0.44693208]
[1758909954894,0.44425,4048.9,4048.1,5.00260208]
[1758909955190,0.44432,4048.3,4048.1,0.00260208]
[1758909955382,0.262,4048.2,4048.1,0.00260208]
[1758909955584,0.262,4048.2,4048.1,0.44693208]
[1758909956180,3.2078,4049.0,4048.3,0.44431]
[1758909956378,0.44428,4048.6,4048.1,0.00260208]
[1758909956582,1.37263,4048.9,4048.1,0.00260208]
[1758909956782,0.44432,4048.3,4048.1,0.00260208]
[1758909956984,0.262,4048.2,4048.1,0.00260208]
[1758909959979,5.262,4048.2,4048.1,0.00260208]
[1758909960383,5.261,4048.2,4048.1,0.00260208]
[1758909960786,5.261,4048.2,4046.9,3.2078]
[1758909960787,0.44445,4047.0,4046.9,3.2078]
[1758909961089,0.261,4047.0,4046.5,0.44451]
[1758909961282,0.261,4047.0,4046.1,0.44454]
[1758909961283,0.44452,4046.4,4046.1,0.44454]
[1758909961489,1.11117,4046.9,4046.1,0.44454]
[1758909961490,0.261,4046.3,4046.1,0.44455]
[1758909961793,3.2078,4047.2,4046.1,0.44455]
[1758909961794,3.2078,4047.2,4046.4,0.44452]
[1758909962091,3.2078,4047.2,4047.0,0.44444]
[1758909962092,0.00298138,4047.2,4047.0,0.44444]
[1758909962587,8.2095994,4047.1,4043.7,1.32880073]
[1758909962782,8.6541394,4046.2,4044.4,3.2078]
[1758909962983,0.44465,4045.2,4044.4,3.2078]
[1758909963288,0.265,4045.1,4044.6,0.44471]
[1758909963485,41.91114,4047.0,4045.0,5.0017994]
[1758909963486,3.2078,4046.4,4045.0,5.0017994]
[1758909963700,0.44456,4046.1,4045.5,0.44461]
[1758909963885,3.2078,4046.4,4045.5,0.00261066]
[1758909964088,0.44458,4045.9,4045.5,0.00261066]
[1758909964283,0.4446,4045.7,4045.5,0.00261066]
[1758909964693,0.4446,4045.7,4045.6,0.14601106]
[1758909965090,0.7096,4045.7,4045.6,0.14601106]
[1758909967301,6.21306698,4045.7,4045.5,1e-08]
[1758909967595,0.50346698,4045.6,4045.5,1e-08]
[1758909967897,0.50346698,4045.6,4043.1,0.44488]
[1758909967898,0.44482,4043.7,4043.1,0.44488]
[1758909968097,0.44482,4043.7,4042.9,0.02473503]
[1758909968098,3.4728,4043.9,4042.9,0.02473503]
[1758909968290,3.9176,4043.9,4043.3,0.44485]
[1758909968487,3.9176,4043.9,4042.9,0.46963503]
[1758909968488,0.44482,4043.7,4042.9,0.46963503]
[1758909968787,3.2078,4043.4,4042.9,0.02677444]
[1758909968989,0.44489,4043.1,4042.9,0.02677444]
[1758909969394,1.11222,4043.1,4041.8,3.2078]
[1758909969594,5.0017994,4042.4,4041.3,3.2078]
[1758909969793,5.0017994,4041.9,4041.3,3.2078]
[1758909970098,0.266,4041.8,4041.4,0.44507]
[1758909970299,5.0017994,4041.9,4041.2,3.2078]
[1758909970496,5.0017994,4042.4,4041.2,3.21083244]
[1758909970701,0.266,4042.4,4041.7,3.2078]
[1758909970998,3.2078,4042.6,4041.7,3.2078]
[1758909971209,3.2078,4042.6,4041.7,8.2078]
[1758909971405,0.266,4042.8,4041.7,3.2078]
[1758909971697,0.00187141,4043.7,4041.7,3.2078]
[1758909971698,0.00187141,4043.7,4042.7,4.32011]
[1758909971901,0.00187141,4043.7,4042.7,3.2078]
[1758909972199,0.00187141,4043.7,4043.2,3.2078]
[1758909972393,0.00187141,4043.7,4043.5,0.44483]
[1758909972594,0.00187141,4043.7,4043.6,5.0]
[1758909972800,0.267,4044.6,4043.6,5.0]
[1758909972998,0.267,4044.5,4044.0,0.44478]
[1758909973303,0.268,4044.8,4044.7,0.4447]
[1758909973603,3.2078,4044.9,4044.7,0.4447]
[1758909973903,0.26992672,4044.8,4044.7,0.00278987]
[1758909974201,5.71641612,4044.8,4044.7,0.00278987]
[1758909974506,0.00734013,4044.7,4043.8,3.2078]
[1758909974695,0.44481,4043.8,4043.3,0.44485]